Cogmind - Beta 12 @@@ ROGUE MODE // 2023.04.26 @ 20:06:10 Player: Mr Goldstein Result: Destroyed by as-03884 with Assembled Blade Performance ------------- Evolutions (1) 500 Regions Visited (6) 1200 Robots Destroyed (0) 0 Value Destroyed (0) 0 Prototype IDs (6) 120 Alien Tech Used (0) 0 Bonus (2242) 2242 TOTAL SCORE: 4062 Bonus ------- Pacifist 200 Follower Combat Kills 42 Destroyed Z-Imprinter 1000 Triggered Deep Caves Wall 500 Exposed GOLEM Chamber 500 Cogmind --------- Core Integrity 0/400 Matter 274/300 Energy 100/100 System Corruption 0% Temperature Cool (5) Movement Flying (54) Location -7/Deep Caves Parts ------- > --- POWER (1) -------- (None) > --- PROPULSION (4) --- Assembled Alloy Leg Flight Unit Makeshift Flight Unit > --- UTILITY (2) ------ GOLEM Unit > --- WEAPON (2) ------- RU-N14's Throwing Claymores Makeshift Axe > --- INVENTORY (5) ---- Phasing AFG RU-N14's Throwing Claymores (10) RU-N14's Throwing Claymores (10) Peak State ------------ > --- POWER ------------ Makeshift Power Source > --- PROPULSION ------- Assembled Alloy Leg Flight Unit Makeshift Flight Unit Makeshift Flight Unit > --- UTILITY ---------- GOLEM Unit > --- WEAPON ----------- RU-N14's Throwing Claymores Makeshift Axe > --- INVENTORY -------- Phasing AFG RU-N14's Throwing Claymores RU-N14's Throwing Claymores [Rating: 51] Favorites ----------- Power Makeshift Power Source Engine Makeshift Power Source Power Core Nuclear Core Propulsion Makeshift Flight Unit Treads Light Treads Leg Assembled Alloy Leg Flight Unit Makeshift Flight Unit Utility Makeshift Thermal Plating Device Improved Heat Sink Processor Visual Processing Unit Protection Makeshift Thermal Plating Weapon Makeshift Axe Special Weapon RU-N14's Throwing Claymores Slashing Weapon Makeshift Axe Build | -11 -10 -10 -9 -9 -7 -7 ------- Run | Jun Mat Min Mat Min Zio Dee Slots Evolved 2 | . . . 2 . . . Power . | . . . . . . . Propulsion 2 | . . . 2 . . . Utility . | . . . . . . . Weapon . | . . . . . . . Parts Attached 27 | 2 . 6 4 . 11 4 Power 2 | . . . 1 . 1 . Engine 1 | . . . . . 1 . Core 1 | . . . 1 . . . Reactor . | . . . . . . . Propulsion 13 | 2 . 5 2 . 4 . Treads 2 | 2 . . . . . . Leg . | . . . . . . . Wheel . | . . . . . . . Hover . | . . . . . . . Flight 11 | . . 5 2 . 4 . Utility 7 | . . 1 1 . 3 2 Device 5 | . . 1 . . 2 2 Storage . | . . . . . . . Processor 1 | . . . 1 . . . Hackware . | . . . . . . . Protection 1 | . . . . . 1 . Artifact . | . . . . . . . Weapon 5 | . . . . . 3 2 Energy Gun . | . . . . . . . Energy Cannon . | . . . . . . . Ballistic Gun . | . . . . . . . Ballistic Cannon . | . . . . . . . Launcher . | . . . . . . . Special Weapon 4 | . . . . . 2 2 Impact Weapon . | . . . . . . . Slashing Weapon 1 | . . . . . 1 . Piercing Weapon . | . . . . . . . Special Melee Weapon . | . . . . . . . Unidentified Prototypes 2 | . . . . . 2 . Parts Lost 9 | . . . 6 . . 3 Power 2 | . . . 1 . . 1 Propulsion 6 | . . . 4 . . 2 Utility 1 | . . . 1 . . . Weapon . | . . . . . . . Highest Loss Streak 5 | . . . 5 . . 2 To Critical Strikes . | . . . . . . . Average Slot Usage (%) 61 | . 28 30 51 11 47 94 Engine 5 | . . . . . 4 11 Treads 2 | . 28 7 . . . . Flight 28 | . . 20 31 . 22 42 Device 4 | . . 2 2 . 2 8 Processor 4 | . . . 9 11 8 . Protection 5 | . . . . . 4 10 Special Weapon 4 | . . . . . . 10 Slashing Weapon 5 | . . . . . 4 11 Naked Turns 1 | . . 1 . . . . Heaviest Build 20 | . . 1 8 . 20 20 Greatest Support 28 | 20 3 8 16 3 28 28 Greatest Overweight (x) . | . . . . . . . Average Overweight (x) . | . . . . . . . Largest Inventory Capacity 5 | 5 5 5 5 5 5 5 Average Capacity 5 | 5 5 5 5 5 5 5 Most Carried 5 | . . 5 4 3 5 4 Average Carried 3 | . . 2 2 2 4 3 Final Capacity 5 | 5 5 5 5 5 5 5 Final Carried 5 | . . 5 2 3 4 3 Class Distribution -------------------- 52% | Derelict-Mutant 43% | Mutant 4% | Scavenger-Sprinter Dominant Class ---------------- Mutant | -10/Materials Mutant | -10/Mines Scavenger-Sprinter | -9/Materials Mutant | -9/Mines Mutant | -7/Zion Derelict-Mutant | -7/Deep Caves Resources | -11 -10 -10 -9 -9 -7 -7 ----------- Run | Jun Mat Min Mat Min Zio Dee Matter Collected 395 | 39 . 229 . . 18 109 Remotely . | . . . . . . . Salvage Created 127 | . . . . . . 127 Parts . | . . . . . . . Haulers Intercepted . | . . . . . . . Recyclers Shooed . | . . . . . . . Parts Field Recycled . | . . . . . . . Retrieved Matter . | . . . . . . . Parts Self-Destructed . | . . . . . . . Prevented . | . . . . . . . Kills | -11 -10 -10 -9 -9 -7 -7 ------- Run | Jun Mat Min Mat Min Zio Dee Combat Hostiles Destroyed 31 | . . . . . . 31 Cannons 1 | . . . . . . 1 AOE 30 | . . . . . . 30 Classes Destroyed 2 | . . . . . . 2 Z-Technician 5 | . . . . . . 5 Assembled 31 | . . . . . . 31 Best Kill Streak 28 | . . . . . . 28 Combat Bots Only 28 | . . . . . . 28 Max Kills in Single Turn 15 | . . . . . . 15 Gunslinging . | . . . . . . . Exploded 14 | . . . . . . 14 Melee . | . . . . . . . Uniques/NPCs Destroyed 1 | . . . . . . 1 Z-Imprinter (-7/Deep Caves) Combat | -11 -10 -10 -9 -9 -7 -7 -------- Run | Jun Mat Min Mat Min Zio Dee Damage Taken 1275 | . 111 206 294 . . 664 Core 516 | . 12 96 117 . . 291 Absorbed by Shields . | . . . . . . . Core Remaining (%) 78 | 100 . 56 . . . . Volleys Fired 12 | . . . . . 1 11 Largest 1 | . . . . . 1 1 Hottest . | . . . . . . . Shots Fired 12 | . . . . . 1 11 Gun . | . . . . . . . Cannon . | . . . . . . . Launcher . | . . . . . . . Special 12 | . . . . . 1 11 Kinetic . | . . . . . . . Thermal . | . . . . . . . Explosive 12 | . . . . . 1 11 Electromagnetic . | . . . . . . . Robot Hit Streak 2 | . . . . . . 2 Robot Miss Streak 2 | . . . . . . 2 Penetration Max . | . . . . . . . Secondary Targets . | . . . . . . . Shots Hit Robots 5 | . . . . . . 5 Core Hits 34 | . . . . . . 34 Critical Kills . | . . . . . . . Critical Parts Destroyed . | . . . . . . . Critical Strikes . | . . . . . . . Melee Attacks 20 | . . . . . 19 1 Impact . | . . . . . . . Slashing 20 | . . . . . 19 1 Piercing . | . . . . . . . Sneak Attacks . | . . . . . . . Combat Hostiles . | . . . . . . . Follow-up Attacks . | . . . . . . . Damage Inflicted 5640 | . . . . . . 5640 Guns . | . . . . . . . Cannons . | . . . . . . . Explosions 5431 | . . . . . . 5431 Melee . | . . . . . . . Ramming . | . . . . . . . Kinetic . | . . . . . . . Thermal 2120 | . . . . . . 2120 Explosive 3311 | . . . . . . 3311 Electromagnetic . | . . . . . . . Impact . | . . . . . . . Slashing 209 | . . . . . . 209 Piercing . | . . . . . . . Highest Corruption . | . . . . . . . Average Corruption . | . . . . . . . Corruption Purged . | . . . . . . . Corruption Blocked . | . . . . . . . Overload Shots . | . . . . . . . Overflow Damage 706 | . . . . . . 706 Projectiles 13 | . . . . . . 13 Explosions 693 | . . . . . . 693 Melee . | . . . . . . . Knockbacks . | . . . . . . . Impact . | . . . . . . . Kinetic . | . . . . . . . Secondary . | . . . . . . . Self-Inflicted Damage . | . . . . . . . Shots . | . . . . . . . Rammed 1 | . 1 . . . . . Targets Rammed 1 | . 1 . . . . . Kicked . | . . . . . . . Crushed . | . . . . . . . Highest Temperature 37 | . . . 4 . 37 21 Average Temperature 18 | . . . 3 . 19 13 Received Heat Transfer 167 | . 63 18 18 . . 68 Siege Activations . | . . . . . . . Robots Corrupted . | . . . . . . . Combat Hostiles . | . . . . . . . Parts Fried . | . . . . . . . Impact Corruptions . | . . . . . . . Robots Melted . | . . . . . . . Combat Hostiles . | . . . . . . . Parts Melted . | . . . . . . . Heat Transferred . | . . . . . . . Parts Sabotaged . | . . . . . . . Parts Stolen . | . . . . . . . Parts Stripped . | . . . . . . . Power Chain Reactions . | . . . . . . . Missiles Intercepted . | . . . . . . . Alert | -11 -10 -10 -9 -9 -7 -7 ------- Run | Jun Mat Min Mat Min Zio Dee Peak Influence 313 | . 45 305 313 121 . . Initial 121 | . . 17 118 121 . . Average 131 | . 14 127 212 121 . . Maximum Alert Level 1 | . . 1 1 . . . Low Security (%) 68 | 100 100 71 36 100 . . Level 1 31 | . . 28 63 . . . Level 2 . | . . . . . . . Level 3 . | . . . . . . . Level 4 . | . . . . . . . Level 5 . | . . . . . . . High Security . | . . . . . . . Max Security . | . . . . . . . Squads Dispatched 4 | . . 1 2 1 . . Investigation 1 | . . 1 . . . . Extermination . | . . . . . . . Reinforcement 2 | . . . 2 . . . Assault 1 | . . . . 1 . . Garrison . | . . . . . . . Intercept . | . . . . . . . Searches Triggered . | . . . . . . . Construction Impeded . | . . . . . . . Haulers Reinforced . | . . . . . . . Active Scanning Responses . | . . . . . . . Cargo Convoy Interrupts . | . . . . . . . Stealth | -11 -10 -10 -9 -9 -7 -7 --------- Run | Jun Mat Min Mat Min Zio Dee Distress Signals 2 | . 1 . 1 . . . Communications Jammed . | . . . . . . . Distress Signals . | . . . . . . . Times Spotted 96 | . 6 22 24 . . 44 Peak Tracking Total 39 | . 6 5 15 . . 39 Tactical Retreats 9 | . 1 4 4 . . . Traps | -11 -10 -10 -9 -9 -7 -7 ------- Run | Jun Mat Min Mat Min Zio Dee Traps Triggered . | . . . . . . . Indirectly . | . . . . . . . Trap Hack Attempts . | . . . . . . . Triggered . | . . . . . . . Disarmed . | . . . . . . . Reprogrammed . | . . . . . . . Reused . | . . . . . . . Traps Extracted . | . . . . . . . Installed . | . . . . . . . Triggered . | . . . . . . . Machines | -11 -10 -10 -9 -9 -7 -7 ---------- Run | Jun Mat Min Mat Min Zio Dee Machines Disabled 5 | . . . . . . 5 Max in Single Turn 2 | . . . . . . 2 Machines Repaired . | . . . . . . . Machines Sabotaged . | . . . . . . . Overloaded Fab Kills . | . . . . . . . Hacking | -11 -10 -10 -9 -9 -7 -7 --------- Run | Jun Mat Min Mat Min Zio Dee Machines Accessed 3 | . . 1 1 . 1 . Terminals 1 | . . . 1 . . . Fabricators . | . . . . . . . Repair Stations . | . . . . . . . Recycling Units . | . . . . . . . Scanalyzers . | . . . . . . . Garrison Access . | . . . . . . . Total Hacks 5 | . . 1 1 . 3 . Successful 5 | . . 1 1 . 3 . Failed . | . . . . . . . Catastrophic . | . . . . . . . Database Lockouts . | . . . . . . . Manual 1 | . . . . . 1 . Terminals 1 | . . . 1 . . . Fabricators . | . . . . . . . Repair Stations . | . . . . . . . Recycling Units . | . . . . . . . Scanalyzers . | . . . . . . . Garrison Access . | . . . . . . . Terminal Hacks 5 | . . 1 1 . 3 . Part Schematic 3 | . . . . . 3 . Prototype ID Bank 1 | . . . 1 . . . Open Door 1 | . . 1 . . . . Fabricator Hacks . | . . . . . . . Repair Station Hacks . | . . . . . . . Recycling Unit Hacks . | . . . . . . . Scanalyzer . | . . . . . . . Garrison Access Hacks . | . . . . . . . Unauthorized Hacks . | . . . . . . . Terminals . | . . . . . . . Fabricators . | . . . . . . . Repair Stations . | . . . . . . . Recycling Units . | . . . . . . . Scanalyzers . | . . . . . . . Garrison Access . | . . . . . . . Data Cores Recovered . | . . . . . . . Used . | . . . . . . . Hacking Detections . | . . . . . . . Full Trace Events . | . . . . . . . Feedback Events . | . . . . . . . Feedback Blocked . | . . . . . . . Robot Schematics Acquired 3 | . . . . . 3 . Robots Built . | . . . . . . . Authchips . | . . . . . . . Time . | . . . . . . . Total Robot Build Rating . | . . . . . . . Part Schematics Acquired 18 | . . . . . 18 . Parts Built . | . . . . . . . Authchips . | . . . . . . . Time . | . . . . . . . Total Part Build Rating . | . . . . . . . Parts Repaired . | . . . . . . . Time . | . . . . . . . Parts Recycled . | . . . . . . . Recycled Matter . | . . . . . . . Retrieved Matter . | . . . . . . . Retrieved Components . | . . . . . . . Parts Scanalyzed . | . . . . . . . Part Schematics Acquired . | . . . . . . . Parts Damaged . | . . . . . . . Bothacking | -11 -10 -10 -9 -9 -7 -7 ------------ Run | Jun Mat Min Mat Min Zio Dee Used RIF Installer . | . . . . . . . Robots Hacked . | . . . . . . . Non-combat . | . . . . . . . Combat . | . . . . . . . Robot Hacks Applied . | . . . . . . . Relay Couplers Released . | . . . . . . . Fabnet Peak Effective % . | . . . . . . . Robots Rewired . | . . . . . . . Allies Hacked . | . . . . . . . Hacks Repelled . | . . . . . . . Allies | -11 -10 -10 -9 -9 -7 -7 -------- Run | Jun Mat Min Mat Min Zio Dee Total Allies 9 | . . 6 . 1 2 . Largest Group 5 | . . 5 . 1 2 2 Highest-Rated Group 192 | . . 75 . 31 192 192 Highest-Rated Ally 96 | . . 31 . 31 96 96 Total Orders . | . . . . . . . Ally Attacks 55 | . . 21 . . . 34 Total Damage 1000 | . . 276 . . . 724 Kills 11 | . . 8 . . . 3 Allies Corrupted . | . . . . . . . Allies Melted . | . . . . . . . Intel | -11 -10 -10 -9 -9 -7 -7 ------- Run | Jun Mat Min Mat Min Zio Dee Robot Analysis Total . | . . . . . . . Derelict Logs Recovered 2 | . . 1 . . 1 . Drone Launches . | . . . . . . . Drone Recoveries . | . . . . . . . Exploration | -11 -10 -10 -9 -9 -7 -7 ------------- Run | Jun Mat Min Mat Min Zio Dee Turns Passed 1383 | 15 44 180 104 30 487 523 Spaces Moved 2375 | 21 85 388 290 57 908 626 Core 542 | 20 85 102 33 57 245 . Treads 1 | 1 . . . . . . Legs . | . . . . . . . Wheels . | . . . . . . . Hover . | . . . . . . . Flight 1832 | . . 286 257 . 663 626 Fastest Speed 31 | 50 50 37 31 50 40 42 Average Speed 42 | 55 50 40 34 50 43 42 Slowest Speed 160 | 160 50 50 50 50 50 54 Overloaded Moves . | . . . . . . . Propulsion Burnouts . | . . . . . . . Robots Hopped 17 | . . 5 12 . . . Cave-ins Triggered . | . . . . . . . Exploration Rate (%) 44 | 3 31 75 31 14 85 73 Regions Visited 6 Branch Regions 4 Pre-discovered Areas 2 | . . 1 . . 1 . Known Exits Taken . | . . . . . . . Unknown Exits Taken 6 | 1 1 1 1 1 1 . Scrap Searched 3 | . . 1 . . 2 . Spaces Dug 4 | . . . . . 4 . Terrain Destroyed 69 | . . . . . 4 65 Melee . | . . . . . . . Projectile 1 | . . . . . . 1 AOE 68 | . . . . . 4 64 Terrain Rammed . | . . . . . . . Walls Destroyed . | . . . . . . . Machines Disabled . | . . . . . . . Actions | -11 -10 -10 -9 -9 -7 -7 --------- Run | Jun Mat Min Mat Min Zio Dee Total 2703 | 22 85 405 281 57 979 874 Wait 266 | . . 9 . . 31 226 Move 2338 | 20 84 378 267 56 907 626 Hop 14 | . . 4 10 . . . Pick Up 10 | . . 4 . 1 4 1 Fast Attach 16 | 2 . 3 1 . 9 1 Attach 8 | . . . 3 . 2 3 Detach 3 | . . . . . 2 1 Swap 3 | . . 3 . . . . Drop 12 | . . 4 . . 4 4 Fire 12 | . . . . . 1 11 Melee 20 | . . . . . 19 1 Ram 1 | . 1 . . . . . Kick . | . . . . . . . Crush . | . . . . . . . Escape Stasis . | . . . . . . . Rewire . | . . . . . . . Trap . | . . . . . . . Miscellaneous . | . . . . . . . Route ------- -11/Junkyard -10/Materials -10/Mines -9/Materials -9/Mines -7/Zion (discovered 2 exits: [*Dee] / [*Pro]) -7/Deep Caves (discovered 1 exit: [*Pro]) History --------- Turn | Location | Event 10 | -11/Junkyard | Discovered new exit (range 13) 16 | -11/Junkyard | Entered Materials 55 | -10/Materials | Discovered new exit (range 8) 60 | -10/Materials | Entered Mines 63 | -10/Mines | Received a Mining Laser from a helpful Derelict 105 | -10/Mines | Met a Derelict shopkeep closing up shop 169 | -10/Mines | Assisted by bots powering up and referring to "LRC-V3" 200 | -10/Mines | Learned location of Zion (-7) 236 | -10/Mines | Discovered new exit (range 9) 240 | -10/Mines | Entered Materials 240 | -9/Materials | Evolved 2 slots: Propulsion x2 338 | -9/Materials | Discovered new exit (range 12) 344 | -9/Materials | Entered Mines 345 | -9/Mines | Met a Derelict testing a Signal Generator 359 | -9/Mines | Lost 5 parts (1p4n) 363 | -9/Mines | Found Signal Generator 371 | -9/Mines | A Derelict revealed a hidden shortcut to a safe place 374 | -9/Mines | Entered Zion 390 | -7/Zion | Found Prototype Device 390 | -7/Zion | Identified Phasing AFG 419 | -7/Zion | Given A8's code to call for help 420 | -7/Zion | Discovered new exit (range 11) 501 | -7/Zion | Found Prototype Special Weapon 501 | -7/Zion | Identified RU-N14's Throwing Claymores 504 | -7/Zion | Found RU-N14's Throwing Claymores 506 | -7/Zion | Found RU-N14's Throwing Claymores 508 | -7/Zion | Found RU-N14's Throwing Claymores 589 | -7/Zion | Learned Factory emergency access door positions 594 | -7/Zion | Given the Hacking Drone Bay 605 | -7/Zion | Build established: Mutant 606 | -7/Zion | Enhanced Grunt warped into view, answering call for help 610 | -7/Zion | Enhanced Grunt warped into view, answering call for help 826 | -7/Zion | Discovered new exit (range 5) 861 | -7/Zion | Entered Deep Caves 861 | -7/Deep Caves | Accompanied by 2 allies 960 | -7/Deep Caves | Build established: Derelict-Mutant 1105 | -7/Deep Caves | Z-Facility disabled 1183 | -7/Deep Caves | Discovered new exit (range 6) 1236 | -7/Deep Caves | Spotted as-16041 1244 | -7/Deep Caves | Core integrity fell below 50% 1367 | -7/Deep Caves | Triggered Deep Caves wall 1368 | -7/Deep Caves | Exposed GOLEM chamber 1371 | -7/Deep Caves | Found GOLEM Unit 1372 | -7/Deep Caves | Spotted AS-06148 1383 | -7/Deep Caves | Core integrity fell below 20% 1384 | -7/Deep Caves | Destroyed by as-03884 with Assembled Blade Last Messages --------------- 01379_ as-22608 destroyed. 01379_ as-52438 destroyed. 01379_ as-17788 destroyed. 01379_ as-49068 destroyed. 01379_ as-44250 destroyed. 01379_ Destroyed Asb. Hover Unit. 01379_ Destroyed Imp. Deuterium Engine. 01379_ SK-3JD(l) destroyed. 01379_ as-74100 destroyed. 01379_ as-87259 destroyed. 01381_ as-19163 released from Mobile Assembly Unit. 01381_ Slug penetrates as-17709. 01381_ A GOLEM Unit tumbles out of the Wall Chamber. 01381_ Mak. Flight Unit destroyed. 01383_ GOLEM Unit springs to life. 01384_ as-73987 GOLEM Unit beginning Asb. Alloy Leg integration. 01384_ as-19171 GOLEM Unit beginning Asb. Alloy Leg integration. 01384_ Penetrated by Slug. 01384_ Mak. Power Source destroyed. 01384_ as-92928 destroyed. Map ----- +----------------------------------------------------+ | ??????????????????????????????## | | ???????????????????????????????## | | ????????????????????????????????## | | ?????????????????????????????????# | | ?????????????????????????????????# | | ???????????????????? ???#???????## | | ?????????????????? ??? #???????# | | ??????????????? #?# #???????# | | ????????? # ???????### | | ????????? ! ##????????# | | ???????? #????????# | | ???????? ???????## | | ?????? = #??????## | | ??????? a = ##???### | | ???????A a = #???# # | | ????????aaa ##??# | | ???????? aa "#### | | ??????###% l/ #?# # # | | ??????#!!! /| ### # | | ???????!!G l !|/ "## | | ????????G! /|!* #?# | | ????????"! a !! !!| ### | | ????????" ! * ## | | ????????# ! ## | | ????????" a ## | | ????????" @ l ## # | | ????????" # | | ????????""" ## | | ????????" ###? | | ????????"" s !| "####??? | | ????????" ##?????? | | ????????"" ##??????? | | ????????" # # #???????? | | ????????" #### ## ## ##???????? | | ????????""" ###??# ## ####????????? | | ?????????" ????#### #???????????? | | ?????????######????????#????????????? | | | | | | | | | | | | | | | | | | | | | | | | | | | +----------------------------------------------------+ Best States ------------- Heat Dissipation 42 Energy Generation 15 Energy Capacity 240 Matter Stores 300 Matter Capacity 300 Sight Range 18 Terrain Scan Density 10 Armor Coverage 100 Resistance: TH 10 Evasion (%) 63 Item Schematics ----------------- Hvy. Riot Gun | -7/Zion | Free Battle Rifle | -7/Zion | Free Slug Cannon | -7/Zion | Free Kinecellerator | -7/Zion | Archive Enh. Optical Array | -7/Zion | Archive Med. Treads | -7/Zion | Archive Remote Shield | -7/Zion | Archive Mak. Hacking Suite | -7/Zion | Archive Imp. Heavy Armor Plating | -7/Zion | Archive Hvy. Ion Cannon | -7/Zion | Archive Lrn. Proton Cannon | -7/Zion | Archive Spk. Medium Treads | -7/Zion | Archive Mak. Power Source | -7/Zion | Archive Plasma Rifle | -7/Zion | Archive Imp. Trap Extractor | -7/Zion | Archive Tiamat Missile Launcher | -7/Zion | Archive Proton Cannon | -7/Zion | Archive Mak. Salvage Targeting Computer | -7/Zion | Archive Robot Schematics ------------------ C-17 Slicer | -7/Zion | Archive L-31 Rogue | -7/Zion | Archive B-36 Bruiser | -7/Zion | Archive Fabricated ------------ Nothing Alien Tech Used ----------------- None Achievements -------------- None Challenges ------------ None Game ------ Seed ImprovedSwordStabilizer Manual? 0 Play Time 00:15:54 Cumulative 149.6 hours Start 2023.04.26 @ 19:50:38 End 2023.04.26 @ 20:06:10 Sessions 1 Manual Loads 0 Difficulty Rogue Special Mode None Game No. 434 Rogue 434 Adventurer 0 Explorer 0 Win Type - Total 7 Types 6/0/0/1/0/0/0/0/0 Lore% 65 Gallery% 71 Achievement% 61 Wizard Run 0 Options --------- ASCII 0 Keyboard 0 Movement Numpad Keybinds 0 Fullscreen 1 Font 16/SmallcapsGlow Map View 75x55 Tactical HUD 1 Map Filters NONE Filters NONE Steam 1 RUN: bd6a9f27-36ae-47ad-8d85-7aa1857b8ab7